Cogmind - Beta 13 X2 @@@ ROGUE MODE // 2024.02.12 @ 14:07:00 Player: H3-RMN Result: Self-destructed Performance ------------- Evolutions (2) 1000 Regions Visited (8) 1600 Robots Destroyed (86) 430 Value Destroyed (2921) 2921 Prototype IDs (29) 580 Alien Tech Used (0) 0 Bonus (745) 745 TOTAL SCORE: 7276 Bonus ------- High Alert Combat Kills 187 Follower Combat Kills 58 Entered Garrisons 200 Aligned with FarCom 300 Cogmind --------- Core Integrity 389/550 Matter 164/300 Energy 100/100 System Corruption 0% Temperature Cool (9) Movement Rolling (90) Location -8/Garrison Parts ------- > --- POWER (1) -------- (None) > --- PROPULSION (3) --- Armored Wheel Armored Wheel Armored Wheel > --- UTILITY (5) ------ Improved Heat Sink > --- WEAPON (2) ------- Minigun > --- INVENTORY (5) ---- Light Treads Large Storage Unit High-capacity Battery (250) Relay Coupler [Swarmer] (43) Guided Plasma Cannon Peak State ------------ > --- POWER ------------ Light Angular Momentum Engine > --- PROPULSION ------- Light Treads Light Treads Armored Treads > --- UTILITY ---------- Humpback Light Armor Plating Light Armor Plating Shield Generator > --- WEAPON ----------- Guided Plasma Cannon Minigun > --- INVENTORY -------- Light Treads Improved Treads Armored Treads Armored Treads Armored Wheel Armored Wheel Armored Wheel Large Storage Unit High-capacity Battery High-capacity Battery Advanced Visual Processing Unit Improved Terrain Scanner Core Shielding Improved Weapon Shielding Medium Armor Plating Shield Generator Hacking Suite System Shield Tractor Beam Long-range Tractor Beam Long-range Tractor Beam EM Pulse Gun Improved EM Shotgun Beam Rifle Minigun Minigun Enhanced Autogun Rocket Launcher Improved Datajack Heavy Flail EMP Trap [Rating: 34] Favorites ----------- Power Light Angular Momentum Engine Engine Light Angular Momentum Engine Power Core Nuclear Core Propulsion Light Treads Treads Light Treads Wheel Wheel Utility Light Armor Plating Device Shield Generator Storage Large Storage Unit Protection Light Armor Plating Weapon Minigun Energy Gun Improved EM Shotgun Energy Cannon Guided Plasma Cannon Ballistic Gun Minigun Ballistic Cannon Light Cannon Build | -11 -10 -10 -9 -9 -9 -8 -8 -8 ------- Run | Yrd Mat Min Mat Min Exi Min Mat Gar Slots Evolved 4 | . . . 2 . . . 2 . Power . | . . . . . . . . . Propulsion 1 | . . . . . . . 1 . Utility 3 | . . . 2 . . . 1 . Weapon . | . . . . . . . . . Parts Attached 69 | 7 4 . 28 3 5 3 12 7 Power 4 | 1 . . 2 1 . . . . Engine 3 | 1 . . 1 1 . . . . Core 1 | . . . 1 . . . . . Reactor . | . . . . . . . . . Propulsion 17 | 2 1 . 8 1 . . 5 . Treads 8 | 1 . . 4 1 . . 2 . Leg . | . . . . . . . . . Wheel 9 | 1 1 . 4 . . . 3 . Hover . | . . . . . . . . . Flight . | . . . . . . . . . Utility 27 | 2 3 . 12 . 3 1 2 4 Device 7 | 1 1 . 2 . 1 1 1 . Storage 4 | 1 1 . 1 . 1 . . . Processor . | . . . . . . . . . Hackware . | . . . . . . . . . Protection 16 | . 1 . 9 . 1 . 1 4 Artifact . | . . . . . . . . . Weapon 21 | 2 . . 6 1 2 2 5 3 Energy Gun 10 | 1 . . 4 . 1 . 3 1 Energy Cannon 1 | . . . . . . 1 . . Ballistic Gun 9 | 1 . . 1 1 1 1 2 2 Ballistic Cannon 1 | . . . 1 . . . . . Launcher . | . . . . . . . . . Special Weapon . | . . . . . . . . . Impact Weapon . | . . . . . . . . . Slashing Weapon . | . . . . . . . . . Piercing Weapon . | . . . . . . . . . Special Melee Weapon . | . . . . . . . . . Unidentified Prototypes 2 | . . . 1 . 1 . . . Parts Lost 49 | . 1 . 12 . 1 . 2 33 Power 3 | . . . 1 . . . . 2 Propulsion 9 | . . . 5 . . . . 4 Utility 23 | . 1 . 3 . . . 1 18 Weapon 14 | . . . 3 . 1 . 1 9 Highest Loss Streak 31 | . 1 . 3 . 1 . 2 31 To Critical Strikes . | . . . . . . . . . Average Slot Usage (%) 91 | . 99 100 98 100 75 88 89 87 Engine 7 | . 14 14 1 4 11 11 9 8 Core 3 | . . . 9 6 . . . . Treads 16 | . 14 14 11 20 22 22 18 . Wheel 6 | . 14 14 10 1 . . 8 27 Device 10 | . 9 . 10 11 11 11 8 9 Storage 10 | . 14 14 11 11 11 11 9 9 Protection 16 | . 4 14 21 22 16 11 18 16 Energy Gun 7 | . 14 14 11 19 2 . 5 7 Energy Cannon 3 | . . . . . . 11 3 . Ballistic Gun 8 | . 14 14 9 2 2 11 8 9 Naked Turns . | . . . . . . . . . Heaviest Build 230 | 15 30 30 43 41 220 227 230 222 Greatest Support 60 | 20 10 10 20 40 40 40 60 36 Greatest Overweight (x) 6 | 1 2 2 4 3 5 5 6 6 Average Overweight (x) 2 | . 1 2 2 . 1 5 4 6 Largest Inventory Capacity 35 | 8 15 15 15 15 35 35 35 35 Average Capacity 23 | 7 13 15 15 15 24 35 35 34 Most Carried 35 | 7 15 15 15 15 21 23 35 35 Average Carried 19 | 3 11 15 14 14 17 22 31 34 Final Capacity 35 | 8 15 15 15 15 35 35 35 5 Final Carried 35 | 7 15 15 15 15 21 23 35 5 Class Distribution -------------------- 45% | Hauler-Mutant 29% | Scavenger-Mutant 25% | Mutant Dominant Class ---------------- Mutant | -10/Materials Mutant | -10/Mines Mutant | -9/Materials Scavenger-Mutant | -9/Mines Hauler-Mutant | -9/Exiles Hauler-Mutant | -8/Mines Hauler-Mutant | -8/Materials Hauler-Mutant | -8/Garrison Resources | -11 -10 -10 -9 -9 -9 -8 -8 -8 ----------- Run | Yrd Mat Min Mat Min Exi Min Mat Gar Matter Collected 1922 | 276 122 . 807 42 . 127 349 199 Remotely 80 | 16 64 . . . . . . . Salvage Created 3434 | 80 183 . 2016 146 . 85 380 544 Parts 198 | 4 10 . 118 8 . 11 16 31 Haulers Intercepted 4 | . 1 . 2 . . . 1 . Recyclers Shooed 3 | . 1 . 2 . . . . . Parts Field Recycled . | . . . . . . . . . Retrieved Matter . | . . . . . . . . . Parts Self-Destructed . | . . . . . . . . . Prevented . | . . . . . . . . . Kills | -11 -10 -10 -9 -9 -9 -8 -8 -8 ------- Run | Yrd Mat Min Mat Min Exi Min Mat Gar Combat Hostiles Destroyed 74 | . 5 . 40 3 . 7 6 13 Guns 57 | . 4 . 33 2 . . 6 12 Cannons 11 | . . . 4 . . 7 . . AOE 5 | . . . 3 1 . . . 1 Classes Destroyed 9 | 1 3 . 3 . . . 2 . Builder 3 | . . . 2 1 . . . . Hauler 4 | . 1 . 2 . . . 1 . Recycler 3 | 1 . . 2 . . . . . Operator 4 | . . . 4 . . . . . Swarmer 17 | . 3 . 3 . . 7 . 4 Grunt 40 | . 2 . 27 3 . . 1 7 Brawler 1 | . . . . . . . 1 . Sentry 15 | . . . 10 . . . 3 2 Hunter 1 | . . . . . . . 1 . Best Kill Streak 6 | 1 3 . 4 2 . 4 3 6 Combat Bots Only 6 | . 3 . 4 2 . 4 3 6 Max Kills in Single Turn 2 | 1 1 . 2 1 . 1 1 2 Gunslinging 1 | . . . 1 . . . . . Exploded 1 | . . . 1 1 . . . 1 Melee . | . . . . . . . . . Uniques/NPCs Destroyed . | . . . . . . . . . Combat | -11 -10 -10 -9 -9 -9 -8 -8 -8 -------- Run | Yrd Mat Min Mat Min Exi Min Mat Gar Hostile Shots Fired 443 | . 36 . 191 6 . 32 59 119 Missed 108 | . 13 . 46 2 . 10 11 26 Damage Taken 4341 | . 278 . 1919 44 . 131 475 1494 Core 578 | . 30 . 365 . . 22 39 122 Absorbed by Shields 260 | . . . 67 18 . 54 121 . Redirected to Shielding 214 | . . . 111 . . . . 103 Regen/Repaired (Parts) 61 | . 17 . 44 . . . . . Core Remaining (%) 63 | 100 . 88 . . . 3 . . Volleys Fired 253 | 2 29 . 144 10 . 13 20 35 Largest 2 | 2 2 . 2 2 . 1 2 2 Hottest 120 | 70 70 . 101 101 . 120 81 75 Shots Fired 469 | 4 58 . 270 19 . 14 40 64 Gun 427 | 4 58 . 241 19 . 1 40 64 Cannon 42 | . . . 29 . . 13 . . Launcher . | . . . . . . . . . Special . | . . . . . . . . . Kinetic 240 | 2 29 . 140 2 . 1 20 46 Thermal 156 | 2 29 . 100 9 . 13 3 . Explosive . | . . . . . . . . . Electromagnetic 73 | . . . 30 8 . . 17 18 Robot Hit Streak 11 | 2 10 . 11 6 . 5 8 9 Robot Miss Streak 7 | 2 3 . 7 1 . . 1 3 Penetration Max . | . . . . . . . . . Secondary Targets 8 | . . . 2 1 . . . 5 Max Gunslinging Chain 1 | . . . 1 1 . . . 1 Shots Hit Robots 305 | 2 37 . 178 10 . 5 28 45 Core Hits 146 | 2 11 . 77 8 . 7 16 25 Critical Kills . | . . . . . . . . . Critical Parts Destroyed . | . . . . . . . . . Critical Strikes 8 | . 3 . 5 . . . . . Burn 8 | . 3 . 5 . . . . . Melee Attacks . | . . . . . . . . . Impact . | . . . . . . . . . Slashing . | . . . . . . . . . Piercing . | . . . . . . . . . Sneak Attacks . | . . . . . . . . . Combat Hostiles . | . . . . . . . . . Follow-up Attacks . | . . . . . . . . . Damage Inflicted 5547 | 25 487 . 3072 314 . 382 453 814 Guns 4481 | 25 487 . 2577 189 . . 449 754 Cannons 723 | . . . 341 . . 382 . . Explosions 338 | . . . 153 125 . . . 60 Melee . | . . . . . . . . . Ramming 5 | . . . 1 . . . 4 . Kinetic 2506 | 12 295 . 1377 . . . 281 541 Thermal 2143 | 13 192 . 1282 186 . 382 28 60 Explosive . | . . . . . . . . . Electromagnetic 893 | . . . 412 128 . . 140 213 Impact . | . . . . . . . . . Slashing . | . . . . . . . . . Piercing . | . . . . . . . . . Highest Corruption 3 | . . . 3 3 3 3 . . Average Corruption 2 | . . . 2 3 3 3 . . Corruption Purged . | . . . . . . . . . Corruption Blocked . | . . . . . . . . . Effects 99 | . . . 33 12 21 33 . . Message Errors 26 | . . . 9 5 3 9 . . Matter Fused 17 | . . . 6 3 4 4 . . Heat Flow Errors 12 | . . . 4 . 4 4 . . Energy Discharges 16 | . . . 4 1 6 5 . . Data Loss (minor) 14 | . . . 7 . 3 4 . . Data Loss (major) 8 | . . . 2 . . 6 . . Misfires 3 | . . . 1 1 . 1 . . Alerts 3 | . . . . 2 1 . . . Overload Shots . | . . . . . . . . . Overflow Damage 7 | . . . 7 . . . . . Projectiles 7 | . . . 7 . . . . . Explosions . | . . . . . . . . . Melee . | . . . . . . . . . Knockbacks 3 | . . . 3 . . . . . Impact . | . . . . . . . . . Kinetic 3 | . . . 3 . . . . . Secondary . | . . . . . . . . . Self-Inflicted Damage 120 | . . . 73 19 . . . 28 Shots 4 | . . . 2 1 . . . 1 Rammed 2 | . . . 1 . . . 1 . Targets Rammed 2 | . . . 1 . . . 1 . Kicked . | . . . . . . . . . Crushed . | . . . . . . . . . Highest Temperature 504 | 18 99 . 275 196 214 504 170 35 Average Temperature 71 | 10 36 . 40 70 90 189 55 15 Received Heat Transfer 1784 | . 90 . 811 16 . . 93 774 Effects 8 | . . . . . . 8 . . Shutdowns 1 | . . . . . . 1 . . Energy Bleed 2 | . . . . . . 2 . . Interference 2 | . . . . . . 2 . . Matter Decay 1 | . . . . . . 1 . . Short Circuit 1 | . . . . . . 1 . . Damage (minor) 1 | . . . . . . 1 . . Siege Activations . | . . . . . . . . . Robots Corrupted . | . . . . . . . . . Combat Hostiles . | . . . . . . . . . Parts Fried . | . . . . . . . . . Impact Corruptions . | . . . . . . . . . Robots Melted 1 | . 1 . . . . . . . Combat Hostiles 1 | . 1 . . . . . . . Parts Melted 12 | . 2 . 6 . . 4 . . Heat Transferred 5337 | 37 777 . 3171 298 . 880 74 100 Parts Sabotaged . | . . . . . . . . . Parts Stolen . | . . . . . . . . . Parts Stripped . | . . . . . . . . . Power Chain Reactions 5 | . . . 3 1 . . . 1 Missiles Intercepted . | . . . . . . . . . Alert | -11 -10 -10 -9 -9 -9 -8 -8 -8 ------- Run | Yrd Mat Min Mat Min Exi Min Mat Gar Peak Influence 731 | 5 160 27 731 418 . 90 163 390 Initial 285 | . 3 27 10 285 . . . 105 Average 211 | 1 78 27 463 254 . 9 39 263 Maximum Alert Level 3 | . . . 3 2 . . . 1 Low Security (%) 59 | 100 100 100 13 35 . 100 100 13 Level 1 13 | . . . 12 53 . . . 86 Level 2 25 | . . . 71 10 . . . . Level 3 . | . . . 2 . . . . . Level 4 . | . . . . . . . . . Level 5 . | . . . . . . . . . High Security . | . . . . . . . . . Max Security . | . . . . . . . . . Squads Dispatched 12 | . 1 . 11 . . . . . Investigation 6 | . 1 . 5 . . . . . Extermination . | . . . . . . . . . Reinforcement 5 | . . . 5 . . . . . Assault 1 | . . . 1 . . . . . Garrison . | . . . . . . . . . Intercept . | . . . . . . . . . Searches Triggered . | . . . . . . . . . Construction Impeded . | . . . . . . . . . Haulers Reinforced . | . . . . . . . . . Active Scanning Responses . | . . . . . . . . . Cargo Convoy Interrupts . | . . . . . . . . . Stealth | -11 -10 -10 -9 -9 -9 -8 -8 -8 --------- Run | Yrd Mat Min Mat Min Exi Min Mat Gar Distress Signals 7 | . . . 6 . . . 1 . Communications Jammed . | . . . . . . . . . Distress Signals . | . . . . . . . . . Times Spotted 129 | . 13 . 71 5 . 7 16 17 Peak Tracking Total 8 | . 3 . 7 3 . 4 6 8 Tactical Retreats 3 | . 1 . 2 . . . . . Traps | -11 -10 -10 -9 -9 -9 -8 -8 -8 ------- Run | Yrd Mat Min Mat Min Exi Min Mat Gar Traps Triggered 5 | . 1 . 4 . . . . . Indirectly . | . . . . . . . . . Trap Hack Attempts . | . . . . . . . . . Triggered . | . . . . . . . . . Disarmed . | . . . . . . . . . Reprogrammed . | . . . . . . . . . Reused . | . . . . . . . . . Traps Extracted . | . . . . . . . . . Installed . | . . . . . . . . . Triggered . | . . . . . . . . . Most Traps Carried 1 | . . . . 1 1 1 1 . Machines | -11 -10 -10 -9 -9 -9 -8 -8 -8 ---------- Run | Yrd Mat Min Mat Min Exi Min Mat Gar Machines Disabled 20 | . . . 4 15 . . . 1 Max in Single Turn 15 | . . . 1 15 . . . 1 Garrison Relay 1 | . . . . . . . . 1 Machines Repaired . | . . . . . . . . . Machines Dismantled . | . . . . . . . . . Machines Sabotaged . | . . . . . . . . . Overloaded Fab Kills . | . . . . . . . . . Hacking | -11 -10 -10 -9 -9 -9 -8 -8 -8 --------- Run | Yrd Mat Min Mat Min Exi Min Mat Gar Machines Accessed 19 | . 3 . 9 . 2 . 4 1 Terminals 11 | . 2 . 5 . . . 3 1 Fabricators . | . . . . . . . . . Repair Stations 3 | . 1 . 2 . . . . . Recycling Units 1 | . . . 1 . . . . . Scanalyzers 1 | . . . 1 . . . . . Garrison Access 1 | . . . . . . . 1 . Total Hacks 58 | . 12 . 26 . 5 . 12 3 Successful 29 | . 6 . 13 . 5 . 5 . Failed 29 | . 6 . 13 . . . 7 3 Catastrophic 3 | . . . . . . . 2 1 Database Lockouts . | . . . . . . . . . Manual 22 | . 4 . 7 . 1 . 10 . Terminals 35 | . 10 . 11 . . . 11 3 Fabricators . | . . . . . . . . . Repair Stations 8 | . 2 . 6 . . . . . Recycling Units 4 | . . . 4 . . . . . Scanalyzers 5 | . . . 5 . . . . . Garrison Access 1 | . . . . . . . 1 . Terminal Hacks 16 | . 4 . 3 . 5 . 4 . Record 4 | . . . . . 4 . . . Part Schematic 1 | . . . 1 . . . . . Robot Schematic 1 | . . . 1 . . . . . Robot Analysis 3 | . 1 . . . . . 2 . Prototype ID Bank 2 | . 2 . . . . . . . Branch Access Points 1 | . . . . . . . 1 . Terminal Index 1 | . . . 1 . . . . . Locate Traps 2 | . 1 . . . . . 1 . Derelict Proto ID Bank 1 | . . . . . 1 . . . Fabricator Hacks . | . . . . . . . . . Repair Station Hacks 5 | . 2 . 3 . . . . . Scan Component 3 | . 1 . 2 . . . . . Repair 2 | . 1 . 1 . . . . . Recycling Unit Hacks 2 | . . . 2 . . . . . Report Inventory 1 | . . . 1 . . . . . Retrieve Components 1 | . . . 1 . . . . . Scanalyzer 4 | . . . 4 . . . . . Insert Component 2 | . . . 2 . . . . . Analyze 2 | . . . 2 . . . . . Garrison Access Hacks 1 | . . . . . . . 1 . Unlock Access 1 | . . . . . . . 1 . Unauthorized Hacks 1 | . . . 1 . . . . . Terminals . | . . . . . . . . . Fabricators . | . . . . . . . . . Repair Stations . | . . . . . . . . . Recycling Units 1 | . . . 1 . . . . . Tunnel 1 | . . . 1 . . . . . Scanalyzers . | . . . . . . . . . Garrison Access . | . . . . . . . . . Data Cores Recovered 1 | . . . 1 . . . . . Used 1 | . . . 1 . . . . . Hacking Detections 13 | . 2 . 7 . . . 3 1 Full Trace Events 4 | . 1 . 2 . . . . 1 Feedback Events . | . . . . . . . . . Feedback Blocked . | . . . . . . . . . Robot Schematics Acquired 1 | . . . 1 . . . . . Robots Built . | . . . . . . . . . Authchips . | . . . . . . . . . Time . | . . . . . . . . . Total Robot Build Rating . | . . . . . . . . . Part Schematics Acquired 3 | . . . 3 . . . . . Parts Built . | . . . . . . . . . Authchips . | . . . . . . . . . Time . | . . . . . . . . . Total Part Build Rating . | . . . . . . . . . Parts Repaired 2 | . 1 . 1 . . . . . Time 52 | . 26 . 26 . . . . . Parts Recycled . | . . . . . . . . . Recycled Matter . | . . . . . . . . . Retrieved Matter . | . . . . . . . . . Retrieved Components 10 | . . . 10 . . . . . Parts Scanalyzed 2 | . . . 2 . . . . . Part Schematics Acquired 2 | . . . 2 . . . . . Parts Damaged . | . . . . . . . . . Bothacking | -11 -10 -10 -9 -9 -9 -8 -8 -8 ------------ Run | Yrd Mat Min Mat Min Exi Min Mat Gar Used RIF Installer . | . . . . . . . . . Robots Hacked . | . . . . . . . . . Non-combat . | . . . . . . . . . Combat . | . . . . . . . . . Robot Hacks Applied . | . . . . . . . . . Relay Couplers Released 3 | . . . . . . . . 3 Machine Destruction 3 | . . . . . . . . 3 Fabnet Peak Effective % . | . . . . . . . . . Robots Rewired . | . . . . . . . . . Allies Hacked . | . . . . . . . . . Hacks Repelled . | . . . . . . . . . Allies | -11 -10 -10 -9 -9 -9 -8 -8 -8 -------- Run | Yrd Mat Min Mat Min Exi Min Mat Gar Total Allies 3 | . . . . 1 . . . 2 Largest Group 2 | . . . . 1 . . . 2 Highest-Rated Group 51 | . . . . 31 . . . 51 Highest-Rated Ally 31 | . . . . 31 . . . 31 Total Orders . | . . . . . . . . . Ally Attacks 17 | . . . . 5 . . . 12 Total Damage 349 | . . . . 84 . . . 265 Kills 2 | . . . . 1 . . . 1 Allies Corrupted . | . . . . . . . . . Allies Melted . | . . . . . . . . . Intel | -11 -10 -10 -9 -9 -9 -8 -8 -8 ------- Run | Yrd Mat Min Mat Min Exi Min Mat Gar Robot Analysis Total 3 | . 1 . . . . . 2 . Derelict Logs Recovered 2 | . . . . 2 . . . . Drone Launches . | . . . . . . . . . Drone Recoveries . | . . . . . . . . . Exploration | -11 -10 -10 -9 -9 -9 -8 -8 -8 ------------- Run | Yrd Mat Min Mat Min Exi Min Mat Gar Turns Passed 8987 | 114 587 35 2670 868 1196 2116 1106 295 Spaces Moved 3492 | 79 415 32 1273 451 440 355 341 106 Core 5 | 5 . . . . . . . . Treads 1663 | 1 . . 326 369 440 355 172 . Legs . | . . . . . . . . . Wheels 1824 | 73 415 32 947 82 . . 169 106 Hover . | . . . . . . . . . Flight . | . . . . . . . . . Fastest Speed 50 | 50 95 110 110 125 160 560 180 180 Average Speed 221 | 91 104 110 159 180 268 560 291 180 Slowest Speed 560 | 160 110 110 320 240 560 560 403 180 Overloaded Moves . | . . . . . . . . . Propulsion Burnouts . | . . . . . . . . . Robots Hopped . | . . . . . . . . . Cave-ins Triggered . | . . . . . . . . . Exploration Rate (%) 52 | 3 64 13 93 99 71 78 35 17 Regions Visited 8 Branch Regions 4 Pre-discovered Areas 3 | . . . 1 1 1 . . . Known Exits Taken 1 | . . . . . . . 1 . Unknown Exits Taken 7 | 1 1 1 1 1 1 1 . . Scrap Searched 2 | . . . . 1 . 1 . . Spaces Dug . | . . . . . . . . . Terrain Destroyed 53 | . . . 14 34 . 2 . 3 Melee . | . . . . . . . . . Projectile 2 | . . . . . . 2 . . AOE 51 | . . . 14 34 . . . 3 Terrain Rammed . | . . . . . . . . . Walls Destroyed . | . . . . . . . . . Machines Disabled . | . . . . . . . . . Actions | -11 -10 -10 -9 -9 -9 -8 -8 -8 --------- Run | Yrd Mat Min Mat Min Exi Min Mat Gar Total 4316 | 113 510 31 1668 487 464 474 411 158 Wait 387 | 19 43 . 187 21 . 100 14 3 Move 3485 | 78 414 31 1272 450 439 354 341 106 Hop . | . . . . . . . . . Pick Up 74 | 7 15 . 17 1 9 4 17 4 Fast Attach 25 | 7 . . 10 1 3 . 4 . Attach 25 | . 1 . 10 1 2 2 3 6 Detach 2 | . . . . . 2 . . . Swap 20 | . 3 . 8 1 1 1 5 1 Drop 43 | . 5 . 19 2 8 . 6 3 Fire 253 | 2 29 . 144 10 . 13 20 35 Melee . | . . . . . . . . . Ram 1 | . . . 1 . . . . . Kick . | . . . . . . . . . Crush 1 | . . . . . . . 1 . Escape Stasis . | . . . . . . . . . Rewire . | . . . . . . . . . Trap . | . . . . . . . . . Miscellaneous . | . . . . . . . . . Route ------- -11/Scrapyard -10/Materials (discovered 2 exits: *Mat / [*Min]) -10/Mines -9/Materials (discovered 4 exits: *Mat x3 / [*Min]) -9/Mines (discovered 3 exits: *Mat x2 / *Exi) -9/Exiles -8/Mines -8/Materials (discovered 3 exits: [*Fac] / Sto / Gar) -8/Garrison History --------- Turn | Location | Event 11 | -11/Scrapyard | Discovered new exit (range 16) 115 | -11/Scrapyard | Entered Materials 301 | -10/Materials | Build established: Mutant 483 | -10/Materials | Discovered new exit (range 15) 642 | -10/Materials | Repaired Tractor Beam 688 | -10/Materials | Discovered new exit (range 12) 702 | -10/Materials | Entered Mines 710 | -10/Mines | Discovered new exit (range 8) 737 | -10/Mines | Entered Materials 737 | -9/Materials | Evolved 2 slots: Utility x2 1081 | -9/Materials | Lost 3 parts (2n1w) 1198 | -9/Materials | Discovered new exit (range 16) 1223 | -9/Materials | Core integrity fell below 50% 1279 | -9/Materials | Repaired Core Shielding 1537 | -9/Materials | First assault squad dispatched 1575 | -9/Materials | Discovered new exit (range 4) 1787 | -9/Materials | Build established: Scavenger-Mutant 1929 | -9/Materials | Core integrity fell below 20% 2699 | -9/Materials | Discovered new exit (range 16) 2858 | -9/Materials | Build established: Mutant 3385 | -9/Materials | Discovered new exit (range 13) 3407 | -9/Materials | Entered Mines 3506 | -9/Mines | Found a hidden stash of uninstalled traps 3599 | -9/Mines | Learned Materials interactive machine intel 3629 | -9/Mines | Discovered new exit (range 10) 3638 | -9/Mines | Escorted by a lone wolf Derelict 3646 | -9/Mines | Build established: Scavenger-Mutant 3658 | -9/Mines | Learned location of Storage (-8) 3847 | -9/Mines | Learned Materials stockpile data 4220 | -9/Mines | Discovered new exit (range 9) 4263 | -9/Mines | Deemed a non-threat by the Exiles lab entrance 4266 | -9/Mines | Discovered new exit (range 5) 4275 | -9/Mines | Entered Exiles 4320 | -9/Exiles | Met 8R-AWN 4343 | -9/Exiles | Met EX-HEX 4405 | -9/Exiles | Met EX-DEC 4432 | -9/Exiles | Learned location of Zion (-7) 4461 | -9/Exiles | Met EX-BIN 4484 | -9/Exiles | Aligned with FarCom system 4485 | -9/Exiles | Given EX-Vault access code 4522 | -9/Exiles | Opened EX-Vault 4538 | -9/Exiles | Found Gui. Plasma Cannon 4580 | -9/Exiles | Warned to stay clear of 0b10 Research branches 5180 | -9/Exiles | Build established: Hauler-Mutant 5426 | -9/Exiles | Discovered new exit (range 10) 5471 | -9/Exiles | Left Exiles lab with Gui. Plasma Cannon 5471 | -9/Exiles | Entered Mines 7543 | -8/Mines | Discovered new exit (range 7) 7587 | -8/Mines | Entered Materials 7587 | -8/Materials | Evolved 2 slots: Propulsion x1, Utility x1 7589 | -8/Materials | Loaded intel: 19 interactive machine locations 7946 | -8/Materials | Identified exit to Storage 8669 | -8/Materials | Discovered new exit (range 10) 8693 | -8/Materials | Identified exit to Garrison 8693 | -8/Materials | Entered Garrison 8717 | -8/Garrison | Rescued a captive Derelict 8719 | -8/Garrison | Rescued a captive Derelict 8814 | -8/Garrison | Triggered checkpoint 8853 | -8/Garrison | Garrison Relay disabled 8988 | -8/Garrison | Self-destructed Last Messages --------------- 08987_ Arm. Treads crushed and broken. 08987_ Imp. Treads crushed and broken. 08987_ Arm. Treads crushed and broken. 08987_ Rocket Launcher crushed and broken. 08987_ EM Pulse Cannon crushed and broken. 08987_ Machine Analyzer crushed and broken. 08987_ Imp. Weapon Shielding crushed and broken. 08987_ Prototype Ballistic Gun crushed and broken. 08987_ System Shield crushed and broken. 08987_ Lrn. Tractor Beam crushed and broken. 08987_ Core Shielding crushed and broken. 08987_ Hcp. Battery crushed and broken. 08987_ Imp. Datajack crushed and broken. 08987_ Lgt. Treads crushed and broken. 08987_ Broken Shield Generator crushed and broken. 08987_ Hvy. Flail crushed and broken. 08987_ Relay Coupler [NC] crushed and broken. 08987_ Cryofiber Web crushed and broken. 08987_ Imp. Terrain Scanner crushed and broken. 08987_ Hcp. Matter Pod crushed and broken. Map ----- +----------------------------------------------------+ | ?????????????????????????????????????????????????? | | ?????????????????????????????????????????????????? | | ?????????????????????????????????????????????????? | | ?????????????????????????????????????????????????? | | ?????????????????????????????????????????????????? | | ?????????????????????????????????????????????????? | | ???????????????????????? #??????????????????????? | | ???????????????????????? #?????????????????????? | | ???????????????????????? ?????????????????????? | | ???????????????????????? ?????????????????????? | | ????????????? ?#?????? #?????????????????????? | | ????????????? ## ????# #?????????????????????? | | ????????????" ???? "s????????????????????? | | ?????????????? ??? "s????????????????????? | | ??????????????? ?? "?????????????????????? | | ???????????????? ?? "?????????????????????? | | ?????????????????# ?# #?????????????????????? | | ?????????????????# ## #####?####????????????? | | ?????????????????? ?? #????????????? | | ???????????????????? ! ???? #????????????? | | ?????????????????????? ==**#?????# #????????????? | | ???????????????????????#=%#?#????# #????????????? | | ???????????????????????#![# ## #?# #????????????? | | ???????????????????????#%*% ???# #????????????? | | ???????????????????????#*%#??????# #????????????? | | ???????????????????????#=@#??????# #????????????? | | ???????????????????????#[[#??????# #????????????? | | ???????????????????????#*!#??????# #????????????? | | ???????????????????????#gg######## =############## | | ???????????????????????+=!= !%[ # | | ???????????????????????# ! ==![ # | | ???????????????????????##########" "########## # | | ????????????????????????????????#"[=####??????# # | | ???????????????????????????????### *##"#??????# # | | ???????????????????????????????#"%=!** #??????# | | ???????????????????????????????# = %! #??????# # | | ???????????????????????????????# "#??????# # | | ???????????????????????????????### ##"#??????# | | ?????????????????????????????????# #?##??????# | | ?????????????????????????????????# #?????????# | | ?????????????????????????????????# #?????????#### | | ?????????????????????????????????# ^#????????????? | | ?????????????????????????????????# #????????????? | | ?????????????????????????????????####????????????? | | ?????????????????????????????????????????????????? | | ?????????????????????????????????????????????????? | | ?????????????????????????????????????????????????? | | ?????????????????????????????????????????????????? | | ?????????????????????????????????????????????????? | | ?????????????????????????????????????????????????? | +----------------------------------------------------+ Best States ------------- Heat Dissipation 45 Energy Generation 18 Energy Capacity 250 Matter Stores 300 Matter Capacity 300 Sight Range 16 Terrain Scan Density 10 Armor Coverage 375 Core Shielding 20 Power Shielding 33 Utility Shielding 66 Evasion (%) 44 Recoil Reduction 3 Item Schematics ----------------- Imp. Treads | -9/Materials | Hacked Shield Generator | -9/Materials | Scanalyzed Med. Armor Plating | -9/Materials | Scanalyzed Robot Schematics ------------------ G-34 Mercenary | -9/Materials | Hacked Fabricated ------------ Nothing Alien Tech Used ----------------- None Achievements -------------- None Challenges ------------ None Game ------ Seed LatentMetaDiverter Manual? 0 Play Time 00:44:35 Cumulative 546.0 hours Start 2024.02.12 @ 13:04:48 End 2024.02.12 @ 14:07:00 Sessions 1 Manual Loads 0 Difficulty Rogue Special Mode None Game No. 211 Rogue 190 Adventurer 3 Explorer 18 Win Type - Total 13 Types 8/2/1/1/0/1/0/0/0 Lore% 85 Gallery% 93 Achievement% 82 Wizard Run 0 Options --------- ASCII 0 Keyboard 0 Movement Numpad Keybinds 0 Fullscreen 1 Font 18/SmallcapsGlow Map View 76x50 Zoom Use 0% Tactical HUD 1 Map Filters NONE Filters NONE Steam 1 RUN: 7d8cf3f4-f0a9-4938-932a-ae576fa57990